Cogmind - Beta 14 @@@ ROGUE MODE // 2024.08.20 @ 22:31:09 Player: Gyro! Result: Destroyed by S-27 Virus with Autogun Performance ------------- Evolutions (3) 1500 Regions Visited (8) 1600 Robots Destroyed (40) 200 Value Destroyed (830) 830 Prototype IDs (1) 20 Alien Tech Used (0) 0 Bonus (34) 34 TOTAL SCORE: 4184 Bonus ------- Follower Combat Kills 179 Friendly Fire -145 Cogmind --------- Core Integrity 0/700 Matter 300/300 Energy 100/100 System Corruption 13% Temperature Cool (0) Movement Core (50) Location -7/Factory Parts ------- > --- POWER (3) -------- (None) > --- PROPULSION (3) --- (None) > --- UTILITY (4) ------ (None) > --- WEAPON (3) ------- Powered Hammer > --- INVENTORY (5) ---- Advanced Weight Redist. System Matter Filter Gauss Rifle Mining Laser Peak State ------------ > --- POWER ------------ Light Ion Engine Light Angular Momentum Engine > --- PROPULSION ------- Airjet Aerolev Unit Improved Linear Gravjet > --- UTILITY ---------- Small Storage Unit Advanced Weight Redist. System > --- WEAPON ----------- Ion Cannon Ion Cannon Rocket Launcher > --- INVENTORY -------- Antimatter Reactor Improved Hover Unit Shock Rifle Lightning Gun Minigun Mining Laser Powered Hammer [Rating: 34] Favorites ----------- Power Light Ion Engine Engine Light Ion Engine Power Core Light Nuclear Core Reactor Antimatter Reactor Propulsion Flight Unit Leg Aluminum Leg Hover Unit Hover Unit Flight Unit Flight Unit Utility Sensor Array Device Sensor Array Storage Small Storage Unit Processor Visual Processing Unit Protection Light Armor Plating Weapon Light Assault Rifle Energy Gun Small Laser Energy Cannon Ion Cannon Ballistic Gun Light Assault Rifle Launcher Rocket Launcher Special Weapon Mining Laser Impact Weapon Powered Hammer Build | -11 -10 -10 -10 -9 -8 -7 -7 -7 ------- Run | Yrd Mat Min Exi Min Mat Fac Was Fac Slots Evolved 6 | . . . . . 4 2 . . Power 2 | . . . . . 2 . . . Propulsion 1 | . . . . . . 1 . . Utility 2 | . . . . . 1 1 . . Weapon 1 | . . . . . 1 . . . Parts Attached 76 | 5 18 4 . 2 27 4 6 10 Power 14 | 1 2 . . 1 4 1 3 2 Engine 10 | 1 2 . . 1 3 1 1 1 Core 2 | . . . . . 1 . . 1 Reactor 2 | . . . . . . . 2 . Propulsion 18 | 2 5 . . . 7 2 1 1 Treads . | . . . . . . . . . Leg 4 | 2 2 . . . . . . . Wheel . | . . . . . . . . . Hover 10 | . 2 . . . 4 2 1 1 Flight 4 | . 1 . . . 3 . . . Utility 14 | . 3 1 . 1 9 . . . Device 8 | . 2 1 . 1 4 . . . Storage 4 | . . . . . 4 . . . Processor 1 | . 1 . . . . . . . Hackware . | . . . . . . . . . Protection 1 | . . . . . 1 . . . Artifact . | . . . . . . . . . Weapon 30 | 2 8 3 . . 7 1 2 7 Energy Gun 3 | 1 2 . . . . . . . Energy Cannon 4 | . . . . . 2 . 1 1 Ballistic Gun 10 | 1 . 2 . . 4 . . 3 Ballistic Cannon . | . . . . . . . . . Launcher 8 | . 5 1 . . 1 . 1 . Special Weapon 1 | . . . . . . . . 1 Impact Weapon 4 | . 1 . . . . 1 . 2 Slashing Weapon . | . . . . . . . . . Piercing Weapon . | . . . . . . . . . Special Melee Weapon . | . . . . . . . . . Unidentified Prototypes 1 | . . . . . 1 . . . Parts Lost 15 | . . . . 1 4 . . 10 Power 6 | . . . . 1 2 . . 3 Propulsion 5 | . . . . . 1 . . 4 Utility 2 | . . . . . 1 . . 1 Weapon 2 | . . . . . . . . 2 Highest Loss Streak 10 | . . . . 1 2 . . 10 To Critical Strikes . | . . . . . . . . . Average Slot Usage (%) 72 | . 81 75 85 94 64 67 70 36 Engine 9 | . 14 14 14 10 4 7 7 5 Leg 3 | . 24 . . . . . . . Hover 13 | . 1 14 14 14 13 22 23 9 Flight 6 | . 1 14 14 14 4 . . . Device 12 | . 13 7 14 26 14 7 7 3 Storage 2 | . . . . . 4 7 7 3 Energy Gun 1 | . 8 6 . . . . . . Energy Cannon 4 | . . . . . 9 15 15 4 Ballistic Gun 12 | . 7 8 28 28 6 . . 2 Launcher 2 | . 5 3 . . 2 . 6 2 Impact Weapon 1 | . 3 . . . . 6 . 2 Peak Build Rating 34 | 5 10 7 7 10 24 25 34 34 Average Rating 12 | 3 6 6 6 8 15 23 25 16 On Entrance 11 | . 5 6 6 7 6 18 25 34 Naked Turns 39 | . . . . . . . . 39 Heaviest Build 40 | 8 14 8 6 7 24 23 40 33 Greatest Support 35 | 20 20 6 6 6 25 32 35 35 Greatest Overweight (x) 4 | . . 1 . 1 2 1 1 4 Average Overweight (x) . | . . . . . . . . . Largest Inventory Capacity 15 | 5 5 5 5 5 15 8 8 8 Average Capacity 5 | 5 5 5 5 5 6 8 8 6 Most Carried 8 | 5 5 5 5 5 8 8 8 8 Average Carried 5 | . 3 4 5 4 5 6 7 6 Final Capacity 8 | 5 5 5 5 5 8 8 8 5 Final Carried 8 | . 5 5 5 5 7 8 7 4 Class Distribution -------------------- 50% | Mutant 39% | Scavenger-Mutant 10% | Gunner Dominant Class ---------------- Mutant | -10/Materials Mutant | -10/Mines Scavenger-Mutant | -10/Exiles Scavenger-Mutant | -9/Mines Mutant | -8/Materials Mutant | -7/Factory Gunner | -7/Waste Mutant | -7/Factory Resources | -11 -10 -10 -10 -9 -8 -7 -7 -7 ----------- Run | Yrd Mat Min Exi Min Mat Fac Was Fac Matter Collected 1321 | 194 154 95 . 144 109 265 211 149 Remotely . | . . . . . . . . . Salvage Created 1721 | . 191 95 . 95 269 291 609 171 Parts 52 | . 8 8 . 9 17 2 6 2 Haulers Intercepted . | . . . . . . . . . Recyclers Shooed 1 | . 1 . . . . . . . Parts Field Recycled . | . . . . . . . . . Retrieved Matter . | . . . . . . . . . Parts Self-Destructed . | . . . . . . . . . Prevented . | . . . . . . . . . Kills | -11 -10 -10 -10 -9 -8 -7 -7 -7 ------- Run | Yrd Mat Min Exi Min Mat Fac Was Fac Combat Hostiles Destroyed 20 | . 3 1 . 4 7 . 2 3 Melee 1 | . . . . . . . . 1 Guns 8 | . . . . 4 2 . . 2 Cannons 5 | . . . . . 3 . 2 . AOE 6 | . 3 1 . . 2 . . . Classes Destroyed 11 | . 4 2 . . 3 1 1 . Worker 4 | . 1 . . . 1 2 . . Builder 3 | . . . . . 1 1 . 1 Tunneler 4 | . . 1 . . 1 2 . . Recycler 6 | . 2 1 . . . 2 . 1 Operator 1 | . . . . . . 1 . . Watcher 2 | . 1 . . . 1 . . . Swarmer 9 | . . 1 . 3 2 . . 3 Grunt 6 | . 3 . . 1 2 . . . Sentry 2 | . . . . . 2 . . . Hunter 1 | . . . . . 1 . . . Compactor 2 | . . . . . . . 2 . Best Kill Streak 6 | . 6 2 . 3 4 4 2 2 Combat Bots Only 3 | . 2 1 . 3 2 . 2 2 Max Kills in Single Turn 6 | . 6 2 . 1 2 1 1 1 Gunslinging . | . . . . . . . . . Exploded 2 | . 2 1 . . 1 . . . Melee 1 | . . . . . . . . 1 Uniques/NPCs Destroyed . | . . . . . . . . . Combat | -11 -10 -10 -10 -9 -8 -7 -7 -7 -------- Run | Yrd Mat Min Exi Min Mat Fac Was Fac Hostile Shots Fired 252 | . 8 9 . 15 63 . . 157 Missed 93 | . 1 4 . 7 22 . . 59 Damage Taken 2373 | . 111 47 . 81 657 . 33 1444 Core 912 | . 11 19 . 13 166 . . 703 Absorbed by Shields . | . . . . . . . . . Regen/Repaired (Parts) 119 | . . . . . 50 39 . 30 Core Remaining (%) 83 | 100 . . . 82 69 . . . Volleys Fired 74 | . 10 3 . 14 26 . 11 10 Largest 3 | . 2 2 . 2 3 . 3 2 Hottest 153 | . 66 40 . 40 145 . 153 100 Shots Fired 141 | . 12 4 . 28 48 . 33 16 Gun 64 | . 8 2 . 28 14 . . 12 Cannon 51 | . . . . . 27 . 22 2 Launcher 24 | . 4 2 . . 7 . 11 . Special 2 | . . . . . . . . 2 Kinetic 58 | . 2 2 . 28 14 . . 12 Thermal 59 | . 6 . . . 27 . 22 4 Explosive 24 | . 4 2 . . 7 . 11 . Electromagnetic . | . . . . . . . . . Robot Hit Streak 11 | . 2 2 . 6 8 . 11 3 Robot Miss Streak 6 | . 6 2 . 2 3 . 2 2 Penetration Max . | . . . . . . . . . Secondary Targets 1 | . . . . 1 . . . . Max Gunslinging Chain 1 | . . . . 1 . . . . Shots Hit Robots 95 | . 4 2 . 17 30 9 20 13 Core Hits 61 | . 12 4 . 10 18 2 10 5 Critical Kills 1 | . . . . . . 1 . . Critical Parts Destroyed 2 | . . . . . . 1 . 1 Critical Strikes 3 | . . . . . . 2 . 1 Smash 3 | . . . . . . 2 . 1 Melee Attacks 18 | . . . . . . 10 . 8 Impact 18 | . . . . . . 10 . 8 Slashing . | . . . . . . . . . Piercing . | . . . . . . . . . Sneak Attacks 8 | . . . . . . 6 . 2 Combat Hostiles . | . . . . . . . . . Follow-up Attacks . | . . . . . . . . . Damage Inflicted 4430 | . 414 221 . 135 948 812 1462 438 Guns 420 | . 33 20 . 135 101 . . 131 Cannons 845 | . . . . . 367 . 455 23 Explosions 2069 | . 381 201 . . 480 . 1007 . Melee 1095 | . . . . . . 812 . 283 Ramming 1 | . . . . . . . . 1 Kinetic 387 | . . 20 . 135 101 . . 131 Thermal 878 | . 33 . . . 367 . 455 23 Explosive 2069 | . 381 201 . . 480 . 1007 . Electromagnetic . | . . . . . . . . . Impact 1095 | . . . . . . 812 . 283 Slashing . | . . . . . . . . . Piercing . | . . . . . . . . . Highest Corruption 13 | . . . . . . . 13 13 Average Corruption 11 | . . . . . . . 9 13 Corruption Purged . | . . . . . . . . . Corruption Blocked . | . . . . . . . . . Effects 23 | . . . . . . . 8 15 Message Errors 1 | . . . . . . . . 1 Matter Fused 7 | . . . . . . . 4 3 Heat Flow Errors 4 | . . . . . . . 1 3 Energy Discharges 5 | . . . . . . . 1 4 Parts Fused 1 | . . . . . . . . 1 Data Loss (minor) 1 | . . . . . . . 1 . Data Loss (major) 2 | . . . . . . . . 2 Misdirections 2 | . . . . . . . 1 1 Overload Shots . | . . . . . . . . . Overflow Damage 760 | . . 68 . . 50 440 7 195 Projectiles 9 | . . . . . 9 . . . Explosions 116 | . . 68 . . 41 . 7 . Melee 635 | . . . . . . 440 . 195 Knockbacks 5 | . . . . . . 4 . 1 Impact 5 | . . . . . . 4 . 1 Kinetic . | . . . . . . . . . Secondary . | . . . . . . . . . Self-Inflicted Damage 198 | . 22 . . . 139 . 37 . Shots 8 | . 1 . . . 5 . 2 . Rammed 1 | . . . . . . . . 1 Targets Rammed 1 | . . . . . . . . 1 Kicked . | . . . . . . . . . Crushed . | . . . . . . . . . Highest Temperature 467 | . 15 2 . . 195 . 467 261 Average Temperature 104 | . 5 1 . . 85 . 154 82 Received Heat Transfer 432 | . 51 . . 21 81 . . 279 Effects 2 | . . . . . . . 2 . Shutdowns 1 | . . . . . . . 1 . Energy Bleed 1 | . . . . . . . 1 . Siege Activations . | . . . . . . . . . Robots Corrupted 5 | . . . . . . 4 . 1 Combat Hostiles . | . . . . . . . . . Parts Fried 9 | . . . . . . 6 . 3 Impact Corruptions 21 | . . . . . . 15 . 6 Robots Melted . | . . . . . . . . . Combat Hostiles . | . . . . . . . . . Parts Melted . | . . . . . . . . . Heat Transferred 1444 | . 75 . . . 592 . 740 37 Parts Sabotaged . | . . . . . . . . . Parts Stolen . | . . . . . . . . . Parts Stripped . | . . . . . . . . . Power Chain Reactions . | . . . . . . . . . Alert | -11 -10 -10 -10 -9 -8 -7 -7 -7 ------- Run | Yrd Mat Min Exi Min Mat Fac Was Fac Peak Influence 420 | . 205 206 . 171 377 171 94 420 Initial 79 | . . 79 . . . 75 59 65 Average 130 | . 82 131 . 107 203 128 75 170 Maximum Alert Level 2 | . 1 1 . . 1 . . 2 Low Security (%) 79 | 100 98 60 . 100 45 100 100 63 Level 1 20 | . 1 39 . . 54 . . 35 Level 2 . | . . . . . . . . . Level 3 . | . . . . . . . . . Level 4 . | . . . . . . . . . Level 5 . | . . . . . . . . . High Security . | . . . . . . . . . Max Security . | . . . . . . . . . Squads Dispatched 4 | . 1 . . . . 2 . 1 Investigation 1 | . . . . . . 1 . . Extermination . | . . . . . . . . . Reinforcement 3 | . 1 . . . . 1 . 1 Assault . | . . . . . . . . . Garrison . | . . . . . . . . . Intercept . | . . . . . . . . . Searches Triggered . | . . . . . . . . . Construction Impeded . | . . . . . . . . . Haulers Reinforced . | . . . . . . . . . Active Scanning Responses . | . . . . . . . . . Cargo Convoy Interrupts . | . . . . . . . . . Stealth | -11 -10 -10 -10 -9 -8 -7 -7 -7 --------- Run | Yrd Mat Min Exi Min Mat Fac Was Fac Distress Signals 1 | . . . . . . . . 1 Communications Jammed . | . . . . . . . . . Distress Signals . | . . . . . . . . . Times Spotted 66 | . 6 3 . 7 11 2 6 31 Peak Tracking Total 12 | . 4 3 . 3 4 1 3 12 Tactical Retreats 10 | . . . . . . . 1 9 Traps | -11 -10 -10 -10 -9 -8 -7 -7 -7 ------- Run | Yrd Mat Min Exi Min Mat Fac Was Fac Traps Triggered 5 | . 2 . . . . 1 . 2 Indirectly . | . . . . . . . . . Trap Hack Attempts . | . . . . . . . . . Triggered . | . . . . . . . . . Disarmed . | . . . . . . . . . Reprogrammed . | . . . . . . . . . Reused . | . . . . . . . . . Traps Extracted . | . . . . . . . . . Installed . | . . . . . . . . . Triggered . | . . . . . . . . . Machines | -11 -10 -10 -10 -9 -8 -7 -7 -7 ---------- Run | Yrd Mat Min Exi Min Mat Fac Was Fac Machines Disabled 6 | . 2 . . . 3 1 . . Max in Single Turn 3 | . 1 . . . 3 1 . . Machines Repaired . | . . . . . . . . . Machines Dismantled . | . . . . . . . . . Machines Sabotaged . | . . . . . . . . . Overloaded Fab Kills . | . . . . . . . . . Hacking | -11 -10 -10 -10 -9 -8 -7 -7 -7 --------- Run | Yrd Mat Min Exi Min Mat Fac Was Fac Machines Accessed 8 | . 3 . 1 . 1 1 . 2 Terminals 2 | . 1 . . . . . . 1 Fabricators . | . . . . . . . . . Repair Stations 3 | . . . . . 1 1 . 1 Recycling Units 2 | . 2 . . . . . . . Scanalyzers . | . . . . . . . . . Garrison Access . | . . . . . . . . . Total Hacks 21 | . 5 . 2 . 6 4 . 4 Successful 15 | . 4 . 2 . 5 2 . 2 Failed 6 | . 1 . . . 1 2 . 2 Catastrophic 1 | . . . . . . 1 . . Database Lockouts . | . . . . . . . . . Manual . | . . . . . . . . . Terminals 2 | . 1 . . . . . . 1 Fabricators . | . . . . . . . . . Repair Stations 13 | . . . . . 6 4 . 3 Recycling Units 4 | . 4 . . . . . . . Scanalyzers . | . . . . . . . . . Garrison Access . | . . . . . . . . . Terminal Hacks 3 | . 1 . 2 . . . . . Record 3 | . 1 . 2 . . . . . Fabricator Hacks . | . . . . . . . . . Repair Station Hacks 9 | . . . . . 5 2 . 2 Scan Component 5 | . . . . . 3 1 . 1 Repair 4 | . . . . . 2 1 . 1 Recycling Unit Hacks 3 | . 3 . . . . . . . Report Inventory 2 | . 2 . . . . . . . Retrieve Components 1 | . 1 . . . . . . . Scanalyzer . | . . . . . . . . . Garrison Access Hacks . | . . . . . . . . . Unauthorized Hacks . | . . . . . . . . . Terminals . | . . . . . . . . . Fabricators . | . . . . . . . . . Repair Stations . | . . . . . . . . . Recycling Units . | . . . . . . . . . Scanalyzers . | . . . . . . . . . Garrison Access . | . . . . . . . . . Data Cores Recovered . | . . . . . . . . . Used . | . . . . . . . . . Hacking Detections 3 | . . . . . 1 1 . 1 Full Trace Events 1 | . . . . . . 1 . . Feedback Events . | . . . . . . . . . Feedback Blocked . | . . . . . . . . . Robot Schematics Acquired . | . . . . . . . . . Robots Built . | . . . . . . . . . Authchips . | . . . . . . . . . Time . | . . . . . . . . . Total Robot Build Rating . | . . . . . . . . . Part Schematics Acquired . | . . . . . . . . . Parts Built . | . . . . . . . . . Authchips . | . . . . . . . . . Time . | . . . . . . . . . Total Part Build Rating . | . . . . . . . . . Parts Repaired 4 | . . . . . 2 1 . 1 Time 127 | . . . . . 58 19 . 50 Parts Recycled . | . . . . . . . . . Recycled Matter . | . . . . . . . . . Retrieved Matter . | . . . . . . . . . Retrieved Components 6 | . 6 . . . . . . . Parts Scanalyzed . | . . . . . . . . . Part Schematics Acquired . | . . . . . . . . . Parts Damaged . | . . . . . . . . . Bothacking | -11 -10 -10 -10 -9 -8 -7 -7 -7 ------------ Run | Yrd Mat Min Exi Min Mat Fac Was Fac Used RIF Installer . | . . . . . . . . . Robots Hacked . | . . . . . . . . . Non-combat . | . . . . . . . . . Combat . | . . . . . . . . . Robot Hacks Applied . | . . . . . . . . . Relay Couplers Released . | . . . . . . . . . Fabnet Peak Effective % . | . . . . . . . . . Robots Rewired . | . . . . . . . . . Allies Hacked . | . . . . . . . . . Hacks Repelled . | . . . . . . . . . Allies | -11 -10 -10 -10 -9 -8 -7 -7 -7 -------- Run | Yrd Mat Min Exi Min Mat Fac Was Fac Total Allies 5 | . . 3 . 1 . . 1 . Largest Group 3 | . . 3 3 3 1 . 1 . Highest-Rated Group 47 | . . 40 40 47 31 . 31 . Highest-Rated Ally 31 | . . 16 16 31 31 . 31 . Total Orders . | . . . . . . . . . Ally Attacks 60 | . . 9 . 27 6 . 18 . Total Damage 633 | . . 94 . 247 20 . 272 . Kills 8 | . . 2 . 5 . . 1 . Allies Corrupted . | . . . . . . . . . Allies Melted . | . . . . . . . . . Intel | -11 -10 -10 -10 -9 -8 -7 -7 -7 ------- Run | Yrd Mat Min Exi Min Mat Fac Was Fac Robot Analysis Total . | . . . . . . . . . Derelict Logs Recovered 4 | . . 2 . 2 . . . . Drone Launches . | . . . . . . . . . Drone Recoveries . | . . . . . . . . . Exploration | -11 -10 -10 -10 -9 -8 -7 -7 -7 ------------- Run | Yrd Mat Min Exi Min Mat Fac Was Fac Turns Passed 2637 | 46 349 250 419 406 403 215 194 355 Spaces Moved 2945 | 34 243 321 604 334 398 318 237 456 Core 265 | 9 . . . . . . . 256 Treads . | . . . . . . . . . Legs 239 | 25 214 . . . . . . . Wheels . | . . . . . . . . . Hover 2349 | . 29 321 604 334 306 318 237 200 Flight 92 | . . . . . 92 . . . Fastest Speed 37 | 50 60 60 60 60 37 48 42 40 Average Speed 66 | 101 112 66 60 96 54 52 55 49 Slowest Speed 250 | 120 120 120 60 120 200 110 111 250 Overloaded Moves . | . . . . . . . . . Propulsion Burnouts . | . . . . . . . . . Robots Hopped 1 | . . . . . 1 . . . Cave-ins Triggered . | . . . . . . . . . Exploration Rate (%) 38 | 3 36 45 71 52 22 10 92 15 Regions Visited 8 Branch Regions 3 Pre-discovered Areas 2 | . . . 1 1 . . . . Known Exits Taken 1 | . . . 1 . . . . . Unknown Exits Taken 5 | 1 1 1 . 1 1 . . . Scrap Searched 1 | . . . . 1 . . . . Spaces Dug . | . . . . . . . . . Terrain Destroyed 211 | . 28 27 . . 91 . 65 . Melee . | . . . . . . . . . Projectile 4 | . . . . . 4 . . . AOE 207 | . 28 27 . . 87 . 65 . Terrain Rammed . | . . . . . . . . . Walls Destroyed . | . . . . . . . . . Machines Disabled . | . . . . . . . . . Actions | -11 -10 -10 -10 -9 -8 -7 -7 -7 --------- Run | Yrd Mat Min Exi Min Mat Fac Was Fac Total 3503 | 45 314 357 660 396 545 351 278 557 Wait 236 | 2 2 19 55 35 46 12 11 54 Move 2936 | 33 242 320 603 333 395 318 236 456 Hop 1 | . . . . . 1 . . . Pick Up 72 | 5 19 5 1 6 19 6 5 6 Fast Attach 19 | . 5 . . 1 12 . . 1 Attach 55 | 5 13 4 . 1 14 4 5 9 Detach 30 | . 8 3 . . 8 . 4 7 Swap 2 | . . . . . 1 . 1 . Drop 59 | . 15 3 1 6 23 1 5 5 Fire 74 | . 10 3 . 14 26 . 11 10 Melee 18 | . . . . . . 10 . 8 Ram 1 | . . . . . . . . 1 Kick . | . . . . . . . . . Crush . | . . . . . . . . . Escape Stasis . | . . . . . . . . . Rewire . | . . . . . . . . . Trap . | . . . . . . . . . Miscellaneous . | . . . . . . . . . Route ------- -11/Scrapyard -10/Materials -10/Mines (discovered 2 exits: [*Mat] / *Exi) -10/Exiles (discovered 2 exits: *Min x2) -9/Mines -8/Materials -7/Factory -7/Waste -7/Factory History --------- Turn | Location | Event 20 | -11/Scrapyard | Discovered new exit (range 16) 47 | -11/Scrapyard | Entered Materials 279 | -10/Materials | Discovered new exit (range 16) 316 | -10/Materials | Build established: Mutant 396 | -10/Materials | Entered Mines 407 | -10/Mines | Assisted by bots powering up and referring to "LRC-V3" 603 | -10/Mines | YI-UF0 nonchalantly dropped a Grenade Launcher on the ground 620 | -10/Mines | Discovered new exit (range 10) 628 | -10/Mines | Deemed a non-threat by the Exiles lab entrance 628 | -10/Mines | Discovered new exit (range 5) 646 | -10/Mines | Entered Exiles 646 | -10/Exiles | Accompanied by 3 allies 647 | -10/Exiles | Identified exit to Mines 683 | -10/Exiles | Met 8R-AWN 696 | -10/Exiles | Met EX-HEX 725 | -10/Exiles | Met EX-DEC 739 | -10/Exiles | Learned location of Zion (-7) 818 | -10/Exiles | Met EX-BIN 851 | -10/Exiles | Build established: Scavenger-Mutant 1065 | -10/Exiles | Entered Mines 1065 | -9/Mines | Accompanied by 3 allies 1290 | -9/Mines | Received a Mining Laser from a helpful Derelict 1356 | -9/Mines | Learned Materials stockpile data 1422 | -9/Mines | Discovered new exit (range 15) 1471 | -9/Mines | Entered Materials 1471 | -8/Materials | Accompanied by 1 ally 1471 | -8/Materials | Evolved 4 slots: Power x2, Utility x1, Weapon x1 1484 | -8/Materials | Repaired Flight Unit 1516 | -8/Materials | Repaired Shotgun 1779 | -8/Materials | Discovered new exit (range 5) 1874 | -8/Materials | Entered Factory 1874 | -7/Factory | Evolved 2 slots: Propulsion x1, Utility x1 1875 | -7/Factory | Identified exit to Storage 1922 | -7/Factory | Build established: Mutant 2049 | -7/Factory | Repaired Airjet 2089 | -7/Factory | Sucked down chute 2089 | -7/Factory | Entered Waste 2090 | -7/Waste | Met a frightened Derelict 2094 | -7/Waste | Spotted C-40 Crusher 2104 | -7/Waste | EMP discharged 2113 | -7/Waste | Spotted C-40 Crusher 2116 | -7/Waste | Allies destroyed C-40 Crusher 2125 | -7/Waste | Spotted C-40 Crusher 2140 | -7/Waste | Destroyed C-40 Crusher 2156 | -7/Waste | Destroyed C-40 Crusher 2166 | -7/Waste | Spotted C-40 Crusher 2186 | -7/Waste | Spotted C-40 Crusher 2204 | -7/Waste | EMP discharged 2204 | -7/Waste | System corruption reached 10% 2234 | -7/Waste | Spotted C-40 Crusher 2264 | -7/Waste | Discovered new exit (range 13) 2283 | -7/Waste | Entered Factory 2345 | -7/Factory | Repaired Lgt. Angular Momentum Engine 2483 | -7/Factory | Core integrity fell below 50% 2513 | -7/Factory | Lost 10 parts (3p4n1u2w) 2559 | -7/Factory | Core integrity fell below 20% 2638 | -7/Factory | Destroyed by S-27 Virus with Autogun Last Messages --------------- 02569_ G-47 Trooper unfolds itself. 02573_ K-01 Serf collects debris. 02580_ System corrupted: Energy discharge (-27). 02591_ Sneak attack on R-06 Scavenger. 02591_ Destroyed Com. Wheel. 02591_ R-06 Scavenger system corrupted by crushing effect. 02591_ R-06 Scavenger knocked back. 02592_ R-06 Scavenger system terminally corrupted. 02592_ Lgt. Ion Engine fried. 02594_ K-01 Serf collects debris. 02594_ Acquired 49 matter. 02597_ Connecting with Terminal... 02615_ O-16 Technician: "IFF HANDSHAKE FAILED. SECURING TERMINAL." 02616_ W-25 Informer sends out distress signal. 02618_ K-01 Serf cleans the Neutrino Reactor. 02624_ ALERT: Hostiles spotted, dispatching reinforcements to Terminal F014. Map ----- +----------------------------------------------------+ | ???????????????????????????????????# | | ???????????????????????????????????###+##+##### | | ?????????????????????????????????????# | | ?????????????????????????????????????# | | ?????????????????????????????????????# | | ?????????????????????????????????????# | | ?????????????????????????????????????# | | ?????????????????????????????????????# | | ?????????????????????????????????????# | | ?????????????????????????????????????########## | | ??????????????????????????????????????????????? | | ??????????????????????????????????????????????? | | ??????????????????????????????????????????????? | | ????????????????????????##########????????????? | | ????????????????????????# #????????????? | | ????????????????????????# #????????????? | | ????????????????????????# #????????????? | | ????????????????????????# ! #?############ | | ????????????????????????# #?# | | ????????????????????????# !!! #?# | | ????????????????????????# !!! #?# | | ????????????????????????# !! #?# | | ????????????????????????# #?# | | ???????????????#+#+#######s###/##### | | ???????????????# s # | | ???????????????# @ # | | ???????????????# + | | ???????????????# # | | ???????????????# # | | ???????????????####+########## # | | ?????????????????????????????# ###/######## | | ?????????????????????????????# | | ?????????????????????????????# | | ?????????????????????????????# | | ?????????????????????????????# | | ?????????????????????????????# | | ?????????????????????????????# ###+######## | | ?????????????????????????????# # ??????? | | ?????????????????????????????# # ??????? | | ?????????????????????????????# # ??????? | | ?????????????????????????????# # ??????? | | ?????????????????????????????# # ??????? | | ?????????????????????????????# ???# ??????? | | ???????????????????????????????????# ??????? | | ???????????????????????????????????# ??????? | | ???????????????????????????????????# ??????? | | ????????????????????????????????????? ????????? | | ??????????????????????????????????????????????? | | ??????????????????????????????????????????????? | | ??????????????????????????????????????????????? | +----------------------------------------------------+ Best States ------------- Heat Dissipation 39 Energy Generation 26 Energy Capacity 350 Matter Stores 300 Matter Capacity 450 Sight Range 18 Robot Scan Range 14 Terrain Scan Range 14 Terrain Scan Density 10 Additional Mass Support 9 Armor Coverage 150 Evasion (%) 70 Item Schematics ----------------- None Robot Schematics ------------------ None Fabricated ------------ Nothing Alien Tech Used ----------------- None Achievements -------------- Power Corrupts Challenges ------------ None Game ------ Seed TimingActiveLink Manual? 0 Play Time 01:25:02 Cumulative 11.2 hours Start 2024.08.20 @ 21:03:53 End 2024.08.20 @ 22:31:09 Sessions 1 Manual Loads 0 Difficulty Rogue Special Mode None Game No. 13 Rogue 13 Adventurer 0 Explorer 0 Win Type - Total 0 Types 0/0/0/0/0/0/0/0/0 Lore% 1 Gallery% 13 Achievement% 12 Wizard Run 0 Options --------- Layout 1 ASCII 0 Keyboard 0 Movement Numpad Keybinds 0 Fullscreen 2 Font 24/Smallcaps Map View 50x35 Zoom Use 0% Tactical HUD 1 Map Filters NONE Filters NONE Steam 1 RUN: f8584da9-2ac4-4ec5-84a7-b3ed8e9ad951